Cogmind - Beta 12 X1 @@@ ROGUE MODE // 2022.07.15 @ 05:21:11 Player: leiavoia Result: Destroyed by G-73 Enforcer with Phase Gun Performance ------------- Evolutions (8) 4000 Regions Visited (26) 5200 Robots Destroyed (439) 2195 Value Destroyed (21912) 21912 Prototype IDs (56) 1120 Alien Tech Used (0) 0 Bonus (11551) 11551 TOTAL SCORE: 45978 Bonus ------- Triggered High Security 500 High Alert Combat Kills 6603 Follower Combat Kills 3790 Entered Garrisons 400 Used RIF Installer 1000 Network Hubs Disabled 200 Aligned with FarCom 300 Built Enhanced Grunts 300 A7 Reached Mainframe 300 Met R17 at Cetus 500 Friendly Fire -2342 Cogmind --------- Core Integrity 0/1450 Matter 279/300 Energy 100/100 System Corruption 17% Temperature Cool (0) Movement Core (50) Location -2/Research Parts ------- > --- POWER (2) -------- (None) > --- PROPULSION (6) --- Advanced Heavy Treads Biometal Heavy Treads Biometal Heavy Treads > --- UTILITY (10) ----- Advanced Visual Processing Unit Advanced Signal Interpreter Advanced Weapon Cycler > --- WEAPON (5) ------- (None) > --- INVENTORY (5) ---- Medium Treads Advanced Sensor Array Enhanced Nova Cannon Thunder Hammer Peak State ------------ > --- POWER ------------ Graviton Reactor Graviton Reactor > --- PROPULSION ------- Centrium Heavy Treads Biometal Heavy Treads Biometal Heavy Treads > --- UTILITY ---------- Advanced Heat Sink Advanced Heat Sink Advanced Heat Sink Advanced Heat Sink Cargo Storage Unit Advanced Visual Processing Unit Advanced Signal Interpreter Advanced Hacking Suite Improved Component Analysis Suite > --- WEAPON ----------- Enhanced Quantum Rifle Enhanced Nova Cannon Enhanced Nova Cannon Enhanced Nova Cannon Heavy Machine Gun > --- INVENTORY -------- Graviton Reactor Graviton Reactor Graviton Reactor Quantum Reactor Quantum Reactor Advanced Heavy Treads Centrium Heavy Treads Centrium Heavy Treads Biometal Heavy Treads Biometal Heavy Treads Improved Antigrav System Improved Antigrav System Combat Linear Gravjet Advanced Heat Sink Compact Battery Advanced Sensor Array Terrain Scanner Advanced Terrain Scanner Advanced Targeting Computer Improved Kinecellerator Enhanced Nova Cannon Heavy Linear Accelerator Advanced Remote Datajack Thunder Hammer [Rating: 177] Favorites ----------- Power Reinforced Fission Core Engine Ion Engine Power Core Reinforced Fission Core Reactor Quantum Reactor Propulsion Armored Medium Treads Treads Armored Medium Treads Leg Aluminum Leg Wheel Compact Wheel Hover Unit Antigrav System Flight Unit Improved Surge Thruster Utility Advanced Heat Sink Device Advanced Heat Sink Storage Cargo Storage Unit Processor Advanced Signal Interpreter Hackware System Shield Protection Core Shielding Weapon Enhanced Gauss Cannon Energy Gun Improved Lightning Gun Energy Cannon Advanced Plasma Cannon Ballistic Gun Assault Rifle Ballistic Cannon Enhanced Gauss Cannon Launcher Long-range Missile Launcher Special Weapon Improved Remote Datajack Impact Weapon Thunder Hammer Piercing Weapon Makeshift Spear Build | -11 -10 -10 -10 -9 -8 -8 -7 -6 -6 -6 -6 -6 -6 -5 -5 -5 -5 -4 -4 -4 -4 -4 -3 -3 -3 -2 ------- Run | Scr Mat Min Exi Min Mat Gar Fac Fac Was Fac Low Low Zio Pro Fac Gar Fac Fac Ext Cet Arc Hub Res Arm Lab Res Slots Evolved 16 | . . . . . 4 . 2 2 . . . . . . 2 . . 2 . . . . 2 . . 2 Power 1 | . . . . . . . . . . . . . . . . . . 1 . . . . . . . . Propulsion 4 | . . . . . 2 . . . . . . . . . 1 . . 1 . . . . . . . . Utility 8 | . . . . . 2 . 2 1 . . . . . . 1 . . . . . . . 1 . . 1 Weapon 3 | . . . . . . . . 1 . . . . . . . . . . . . . . 1 . . 1 Parts Attached 514 | 1 10 4 17 12 30 37 51 16 2 6 9 17 . 7 14 24 38 16 24 12 12 12 11 91 . 41 Power 37 | . 2 . . 2 2 2 3 1 . 2 1 . . 1 1 1 . 1 . 1 1 . 1 10 . 5 Engine 13 | . 2 . . 2 2 2 1 1 . 2 . . . 1 . . . . . . . . . . . . Core 6 | . . . . . . . 1 . . . 1 . . . 1 1 . 1 . . . . . 1 . . Reactor 18 | . . . . . . . 1 . . . . . . . . . . . . 1 1 . 1 9 . 5 Propulsion 114 | . 5 1 3 2 11 10 14 4 1 . 6 6 . 2 5 1 3 1 5 2 . 1 . 23 . 8 Treads 73 | . . . 2 . 11 10 8 . . . 4 1 . . 4 1 3 1 5 2 . 1 . 12 . 8 Leg 23 | . 5 1 1 2 . . 5 . . . 1 1 . 2 . . . . . . . . . 5 . . Wheel 8 | . . . . . . . 1 . . . . 4 . . . . . . . . . . . 3 . . Hover 4 | . . . . . . . . . . . . . . . 1 . . . . . . . . 3 . . Flight 6 | . . . . . . . . 4 1 . 1 . . . . . . . . . . . . . . . Utility 196 | 1 2 2 4 4 7 12 15 7 1 3 . 4 . 2 5 12 19 8 8 5 8 9 7 34 . 17 Device 108 | 1 . 1 1 4 4 2 6 3 1 1 . 2 . . 3 6 10 6 6 2 3 7 4 19 . 16 Storage 14 | . 1 . 1 . . 1 . 1 . . . 1 . . . 1 . . 2 . . . . 6 . . Processor 9 | . . . . . . . . . . 2 . . . 1 . . 1 . . 1 . . . 4 . . Hackware 23 | . . . . . . 2 2 3 . . . 1 . . 1 3 4 . . . 4 . 1 1 . 1 Protection 42 | . 1 1 2 . 3 7 7 . . . . . . 1 1 2 4 2 . 2 1 2 2 4 . . Artifact . | . . . . . . . . . . . . . . . . . . . . . . . . . . . Weapon 167 | . 1 1 10 4 10 13 19 4 . 1 2 7 . 2 3 10 16 6 11 4 3 2 3 24 . 11 Energy Gun 12 | . . . 2 2 1 . 1 2 . . . 2 . . . . . . . . . . . . . 2 Energy Cannon 56 | . 1 . 2 1 6 5 5 1 . . . 2 . . 1 4 5 4 3 1 2 . 1 7 . 5 Ballistic Gun 19 | . . 1 2 1 1 3 4 . . . . . . 1 . . . . . 1 1 . . 4 . . Ballistic Cannon 33 | . . . . . 1 1 2 1 . 1 2 . . . 2 2 3 2 4 2 . 1 1 6 . 2 Launcher 22 | . . . 1 . 1 3 4 . . . . 1 . 1 . . 6 . 1 . . 1 . 3 . . Special Weapon 18 | . . . . . . . 3 . . . . 2 . . . 4 2 . 3 . . . 1 3 . . Impact Weapon 4 | . . . . . . 1 . . . . . . . . . . . . . . . . . 1 . 2 Slashing Weapon . | . . . . . . . . . . . . . . . . . . . . . . . . . . . Piercing Weapon 3 | . . . 3 . . . . . . . . . . . . . . . . . . . . . . . Special Melee Weapon . | . . . . . . . . . . . . . . . . . . . . . . . . . . . Unidentified Prototypes 17 | . . 1 1 1 1 . . 1 1 . . . . . 1 1 . 1 . 3 1 . . 4 . . Corrupted Parts 13 | . . . . . . . 7 . . . . . . . . . . . . 1 2 . . 1 . 2 System Corruption 69 | . . . . . . . 52 . . . . . . . . . . . . 1 8 . . 5 . 3 Parts Lost 116 | . . 1 2 2 1 4 26 . 1 1 . 3 . 1 1 . 3 1 1 . . 1 . 36 . 31 Power 14 | . . . . 1 1 . 2 . . 1 . . . . . . . . . . . . . 4 . 5 Propulsion 30 | . . . 1 . . 1 8 . 1 . . 3 . 1 1 . 2 . . . . . . 8 . 4 Utility 38 | . . . . . . 2 9 . . . . . . . . . 1 1 1 . . 1 . 12 . 11 Weapon 34 | . . 1 1 1 . 1 7 . . . . . . . . . . . . . . . . 12 . 11 Highest Loss Streak 20 | . . 1 2 1 1 2 11 . 1 1 . 2 . 1 1 . 2 1 1 . . 1 . 14 . 20 To Critical Strikes 4 | . . . . . . . 2 . . . . . . . . . 1 . . . . . . 1 . . Average Slot Usage (%) 88 | . 99 99 92 99 96 99 96 63 86 84 90 90 86 95 93 83 80 83 83 79 82 84 82 77 76 74 Engine 4 | . 14 14 14 14 9 9 5 3 6 4 1 . . 3 . . . . . . . . . . . . Core 2 | . . . . . . . . . . . 4 6 6 2 4 5 5 9 10 8 5 5 4 1 . . Reactor 1 | . . . . . . . 1 . . . . . . . . . . . . 1 5 5 3 7 9 7 Treads 18 | . . . 9 24 27 35 28 . . . 10 17 6 6 19 17 19 26 25 21 21 21 19 15 14 12 Leg 5 | . 28 28 18 3 4 . . 2 . . 3 1 . 12 3 . . . . . . . . . . . Device 12 | . 10 . . 11 16 8 7 10 20 18 13 13 13 10 6 17 14 17 20 19 14 11 13 16 9 17 Storage 7 | . 14 14 14 14 9 9 6 5 6 . . . 6 . . 4 5 5 5 5 5 5 4 5 9 4 Processor 2 | . . . . . . . . . . 6 13 6 6 12 11 3 2 1 . . 5 2 . 3 14 8 Hackware 4 | . . . . . . 1 10 11 20 20 20 24 20 20 20 3 2 . . . 3 11 4 . . 2 Protection 8 | . 3 13 13 2 10 16 16 . . . . . . 1 5 9 8 5 5 6 6 4 12 5 . . Energy Cannon 6 | . 13 14 1 8 8 7 2 3 . . . 1 6 6 4 4 7 8 2 9 8 6 4 8 14 10 Ballistic Gun 3 | . 14 14 4 14 3 3 5 . . . . . . 2 3 . . . . . 3 5 4 2 4 2 Ballistic Cannon 4 | . . . . . 5 4 2 . . . 3 5 . . 4 11 7 6 9 4 3 2 6 4 . . Piercing Weapon 1 | . . . 11 . . . . . . . . . . . . . . . . . . . . . . . Naked Turns 14 | . . . . . . . 10 . . . . . . . . . . . . . . . . 4 . . Heaviest Build 268 | 13 51 51 64 57 75 75 94 16 16 16 40 44 21 28 43 213 213 239 235 247 232 230 247 268 216 243 Greatest Support 240 | 20 20 20 40 40 82 82 80 25 16 24 70 90 42 30 155 172 172 186 186 214 214 214 160 240 240 240 Greatest Overweight (x) 74 | . 2 2 3 4 2 1 7 2 . . . 2 . 1 . 1 1 1 1 1 1 1 1 74 . 1 Average Overweight (x) . | . 1 2 1 1 . . . . . . . . . . . . 1 1 1 1 1 1 1 1 . . Largest Inventory Capacity 30 | 8 20 20 20 20 20 20 20 5 5 5 5 5 5 5 5 30 30 30 30 30 30 30 30 30 30 30 Average Capacity 22 | 8 19 20 20 20 20 20 19 5 5 5 5 5 5 5 5 27 30 30 30 30 30 30 30 28 30 27 Most Carried 30 | 7 20 20 20 20 20 20 20 5 5 5 5 5 5 5 5 30 30 30 30 30 30 30 30 30 28 30 Average Carried 21 | 6 16 19 19 19 19 19 19 4 4 4 4 4 2 4 4 26 29 29 29 29 29 27 29 24 28 24 Final Capacity 30 | 8 20 20 20 20 20 20 5 5 5 5 5 5 5 5 5 30 30 30 30 30 30 30 30 30 30 5 Final Carried 30 | 7 20 20 20 20 20 20 3 5 5 5 4 1 5 5 5 30 30 30 30 30 30 26 30 28 28 4 Class Distribution -------------------- 24% | Mutant 19% | Scavenger-Mutant 14% | Hauler-Tank 14% | Hauler-Mutant 9% | Hacker-Mutant 4% | Bothacker-Mutant 3% | Scavenger-Tank Dominant Class ---------------- Mutant | -10/Materials Mutant | -10/Mines Mutant | -10/Exiles Mutant | -9/Mines Scavenger-Mutant | -8/Materials Scavenger-Mutant | -8/Garrison Bothacker-Mutant | -7/Factory Hacker-Mutant | -6/Factory Hacker-Sprinter | -6/Waste Hacker-Mutant | -6/Factory Hacker-Mutant | -6/Lower Caves Hacker-Mutant | -6/Lower Caves Hacker-Mutant | -6/Zion Hacker-Mutant | -5/Proximity Caves Hacker-Mutant | -5/Factory Hauler-Mutant | -5/Garrison Hauler-Tank | -5/Factory Hauler-Mutant | -4/Factory Scavenger-Mutant | -4/Extension Hauler-Tank | -4/Cetus Scavenger-Mutant | -4/Archives Scavenger-Tank | -4/Hub_04(d) Scavenger-Tank | -3/Research Hauler-Tank | -3/Armory Scavenger-Skirmisher | -3/Lab Scavenger-Assassin | -2/Research Resources | -11 -10 -10 -10 -9 -8 -8 -7 -6 -6 -6 -6 -6 -6 -5 -5 -5 -5 -4 -4 -4 -4 -4 -3 -3 -3 -2 ----------- Run | Scr Mat Min Exi Min Mat Gar Fac Fac Was Fac Low Low Zio Pro Fac Gar Fac Fac Ext Cet Arc Hub Res Arm Lab Res Matter Collected 13861 | 255 434 125 298 392 754 871 1433 29 . 293 117 645 . 126 164 944 1221 536 932 286 300 345 345 2258 . 758 Remotely 597 | . . . . . . . 597 . . . . . . . . . . . . . . . . . . . Salvage Created 22081 | 175 634 138 95 434 1308 1225 3653 141 . 364 164 571 . 402 210 1543 2028 1481 859 269 256 1046 330 2593 . 2162 Parts 958 | 11 57 7 1 29 61 64 142 6 . 25 3 15 . 15 5 44 85 59 35 9 24 41 11 110 . 99 Haulers Intercepted 8 | . 1 . . . . . 1 . . 1 . . . . . . 4 1 . . . . . . . . Recyclers Shooed 9 | . 1 1 . . . . . 1 . . . . . . . . 3 . 1 . . . 1 . . 1 Parts Field Recycled . | . . . . . . . . . . . . . . . . . . . . . . . . . . . Retrieved Matter . | . . . . . . . . . . . . . . . . . . . . . . . . . . . Parts Self-Destructed 28 | . . . . . . . . . . . 1 20 . 7 . . . . . . . . . . . . Prevented . | . . . . . . . . . . . . . . . . . . . . . . . . . . . Kills | -11 -10 -10 -10 -9 -8 -8 -7 -6 -6 -6 -6 -6 -6 -5 -5 -5 -5 -4 -4 -4 -4 -4 -3 -3 -3 -2 ------- Run | Scr Mat Min Exi Min Mat Gar Fac Fac Was Fac Low Low Zio Pro Fac Gar Fac Fac Ext Cet Arc Hub Res Arm Lab Res Combat Hostiles Destroyed 335 | . 13 1 7 10 23 22 57 . . 1 1 11 . 3 5 18 35 21 17 3 . 16 5 45 . 21 Guns 50 | . 3 . 1 8 6 6 9 . . . . 1 . . 1 . . . . . . 5 . 4 . 6 Cannons 193 | . 10 1 . 2 15 10 13 . . 1 1 9 . 1 1 18 21 18 14 3 . 8 3 31 . 13 AOE 70 | . . . 6 . . 3 24 . . . . 1 . 1 3 . 14 2 3 . . 2 2 9 . . Classes Destroyed 21 | 2 7 . 1 2 1 4 1 . . . 1 . . . . 1 . . . . . . . 1 . . Worker 38 | . 4 2 . . 1 . 8 1 . 3 . . . . . . 2 3 . . . 9 . . . 5 Builder 12 | . 1 . . 1 . . 1 . . . . . . . . . 3 . 1 . . 2 . . . 3 Tunneler 8 | 5 . . . . . . . . . . . . . . . . . . . . . 2 1 . . . Hauler 8 | . 1 . . . . . 1 . . 1 . . . . . . 4 1 . . . . . . . . Recycler 13 | 1 . 1 . . 3 . . 1 . 1 . . . . 1 . . 1 . . . . 1 . . 3 Mechanic 8 | . 1 . . . . . 5 . . . . . . . . . 1 . . . . . . . . 1 Operator 13 | . . . . . 1 . . . . . . . . . . . . . . . 9 . . 2 . 1 Watcher 8 | . 3 . . . . . 1 . . 1 . . . . . . 1 . . . . 1 . . . 1 Swarmer 32 | . 6 . . 3 2 . 5 . . . . . . . 4 1 3 . 3 . . . 3 2 . . Grunt 141 | . 7 1 2 4 14 12 32 . . . . 4 . . 1 5 14 10 5 1 . 11 2 14 . 2 Brawler 11 | . . . . . . 2 9 . . . . . . . . . . . . . . . . . . . Duelist 16 | . . . . 1 . 1 5 . . . . 1 . . . . 3 . . . . 1 . 4 . . Protector 4 | . . . . . . . 2 . . . . . . . . . 1 . . . . . . 1 . . Sentry 43 | . . . . 2 7 4 1 . . . . 1 . 1 . 8 4 3 7 . . . . 4 . 1 Specialist 8 | . . . . . . 1 . . . . . 3 . . . . . . . . . . . 2 . 2 Hunter 27 | . . . . . . 1 1 . . . . 1 . 2 . 2 4 4 . . . 1 . 7 . 4 Programmer 44 | . . . . . . 2 2 . . 1 1 1 . . . 3 7 4 . . . 2 . 11 . 10 Heavy 3 | . . . . . . . . . . . . . . . . . . . . . . . . 1 . 2 Behemoth 3 | . . . . . . . . . . . . . . . . 1 . . 1 . . . . 1 . . Cetus Guard 2 | . . . . . . . . . . . . . . . . . . . . 2 . . . . . . Lightning 1 | . . . . . . . . . . . . . . . . . . . . . . 1 . . . . Decomposer 2 | . . . . . . . . . . . . . . 2 . . . . . . . . . . . . Packrat 3 | . . . . . . . . . . . . 2 . 1 . . . . . . . . . . . . Samaritan 4 | . . . . . . . . . . . 2 . . 2 . . . . . . . . . . . . Assembled 7 | . . . 7 . . . . . . . . . . . . . . . . . . . . . . . Thug 1 | . . . . . . . . . . . . . . . . . . . 1 . . . . . . . Butcher 1 | . . . . . . . . . . . . . . . . . . . . 1 . . . . . . Best Kill Streak 10 | 4 4 2 7 3 7 3 10 1 . 4 1 3 . 1 4 2 7 4 4 1 3 10 4 8 . 7 Combat Bots Only 9 | . 3 1 7 3 7 3 9 . . 1 1 3 . 1 4 2 5 4 4 1 . 8 4 7 . 5 Max Kills in Single Turn 7 | 1 1 1 4 1 1 2 7 1 . 2 1 1 . 1 3 1 3 2 3 1 1 5 1 3 . 3 Gunslinging . | . . . . . . . . . . . . . . . . . . . . . . . . . . . Exploded 4 | . . . 4 . . 1 4 . . . . 1 . 1 3 . 2 1 2 . . 1 1 3 . . Melee . | . . . . . . . . . . . . . . . . . . . . . . . . . . . Uniques/NPCs Destroyed . | . . . . . . . . . . . . . . . . . . . . . . . . . . . Combat | -11 -10 -10 -10 -9 -8 -8 -7 -6 -6 -6 -6 -6 -6 -5 -5 -5 -5 -4 -4 -4 -4 -4 -3 -3 -3 -2 -------- Run | Scr Mat Min Exi Min Mat Gar Fac Fac Was Fac Low Low Zio Pro Fac Gar Fac Fac Ext Cet Arc Hub Res Arm Lab Res Damage Taken 40531 | . 325 31 380 545 1412 1092 4367 97 . 201 . 691 . 422 102 1213 1875 1670 713 444 95 1759 312 12929 . 9856 Core 4363 | . 47 . 65 103 114 42 590 19 . 44 . 64 . 84 . 51 171 85 42 26 22 64 27 1228 . 1475 Absorbed by Shields 4585 | . . . . . . 17 . . . . . . . . 10 435 294 551 261 187 36 561 113 2120 . . Reduced by Siege Mode 1537 | . . . . . . . . . . . . . . . . 44 40 21 5 . . 50 . 481 . 896 Redirected to Shielding 52 | . . . 13 6 . . 1 . . . . . . . 7 25 . . . . . . . . . . Regen/Repaired (Parts) 2508 | . . . . . 122 . 205 . . . . . . . 283 . . . 1193 . . . . 705 . . Core Remaining (%) 54 | 100 . . . 14 . 71 15 . . . . . . 75 . . 77 . . . . 79 . . 3 . Volleys Fired 1253 | 15 59 8 33 27 75 85 142 14 . 14 13 51 . 26 23 145 84 61 48 27 42 46 16 139 . 60 Largest 5 | 2 2 2 1 2 2 2 2 1 . 1 1 2 . 3 3 3 3 3 3 3 3 3 4 4 . 5 Hottest 455 | 60 80 80 100 83 114 114 105 75 . 83 83 143 . 169 212 212 253 269 212 252 188 223 239 383 . 455 Shots Fired 2435 | 30 118 16 35 51 150 156 212 14 . 14 12 58 . 31 31 243 178 136 105 48 92 116 19 356 . 214 Gun 545 | 30 59 8 31 38 41 37 74 . . 12 10 8 . 4 4 . . . . 1 8 39 1 71 . 69 Cannon 1732 | . 59 8 1 13 109 94 104 14 . 2 2 44 . 26 26 237 154 136 84 47 84 69 12 262 . 145 Launcher 87 | . . . 3 . . 25 16 . . . . 4 . 1 1 . 14 . 3 . . 8 2 10 . . Special 71 | . . . . . . . 18 . . . . 2 . . . 6 10 . 18 . . . 4 13 . . Kinetic 1092 | 15 59 8 24 27 75 65 137 3 . 2 2 31 . 4 8 103 68 53 76 11 24 74 5 176 . 42 Thermal 1041 | . 59 8 1 13 75 64 30 11 . . . 13 . 26 22 134 86 59 8 19 68 34 8 149 . 154 Explosive 46 | . . . 3 . . . . . . . . 4 . 1 1 . 14 . 3 . . 8 2 10 . . Electromagnetic 185 | 15 . . 7 11 . 27 27 . . 12 10 8 . . . . . 24 . 18 . . . 8 . 18 Robot Hit Streak 28 | 5 13 4 3 7 11 9 13 19 . 5 9 12 . 6 8 28 16 13 28 12 5 19 8 21 . 27 Robot Miss Streak 7 | 2 5 3 7 3 3 2 4 3 . 1 1 3 . 4 3 4 5 3 2 4 6 4 2 5 . 4 Penetration Max 2 | . . . . . 1 1 2 . . . . . . . . 1 1 1 1 . 1 1 . 1 . . Secondary Targets 1 | . . . . 1 . . . . . . . . . . . . . . . . . . . . . . Max Gunslinging Chain 1 | . . . . 1 . . . . . . . . . . . . . . . . . . . . . . Shots Hit Robots 1494 | 18 62 8 14 34 106 72 132 7 . 11 11 37 . 20 12 152 112 80 78 22 43 78 13 226 . 146 Core Hits 822 | 6 26 5 18 15 44 39 135 3 . 10 3 20 . 12 7 60 91 39 30 6 21 61 8 113 . 50 Critical Kills 36 | . . . . 1 2 5 9 . . . . . . 1 1 2 . 1 5 2 . 4 . . . 3 Critical Parts Destroyed 36 | . . . 1 1 4 4 14 . . . . . . . . . . . 6 . 1 2 . 3 . . Critical Strikes 135 | . . . 3 3 6 9 28 . . . . 1 . 1 1 15 9 9 21 3 3 8 1 8 . 6 Meltdown 10 | . . . . . 1 . 1 . . . . . . 1 1 2 . 1 . . . 1 . . . 2 Destroy 71 | . . . 3 2 5 9 24 . . . . . . . . . . . 14 3 2 5 . 4 . . Blast 50 | . . . . . . . 3 . . . . 1 . . . 13 9 7 7 . 1 2 1 4 . 2 Corrupt 3 | . . . . 1 . . . . . . . . . . . . . 1 . . . . . . . 1 Smash 1 | . . . . . . . . . . . . . . . . . . . . . . . . . . 1 Melee Attacks 37 | . . . 4 . . 12 . . . . . . . . . . . . . . . . . 1 . 20 Impact 33 | . . . . . . 12 . . . . . . . . . . . . . . . . . 1 . 20 Slashing . | . . . . . . . . . . . . . . . . . . . . . . . . . . . Piercing 4 | . . . 4 . . . . . . . . . . . . . . . . . . . . . . . Sneak Attacks 2 | . . . 1 . . . . . . . . . . . . . . . . . . . . . . 1 Combat Hostiles . | . . . . . . . . . . . . . . . . . . . . . . . . . . . Follow-up Attacks . | . . . . . . . . . . . . . . . . . . . . . . . . . . . Damage Inflicted 61848 | 233 1004 134 709 700 2318 2575 7994 177 . 485 413 2292 . 663 579 5342 6107 3487 2210 841 1505 4823 586 9598 . 7073 Guns 7775 | 233 403 60 175 441 512 403 1541 . . 253 240 81 . 32 44 . . . . 22 183 819 . 951 . 1382 Cannons 38119 | . 601 74 . 147 1788 1228 1696 177 . 103 173 1767 . 596 248 5342 3619 2887 1811 819 1235 1651 297 6694 . 5166 Explosions 15411 | . . . 462 112 . 944 4757 . . 129 . 417 . 35 277 . 2416 600 391 . 87 2309 232 1906 . 337 Melee 210 | . . . 72 . . . . . . . . . . . . . . . . . . . . . . 138 Ramming 333 | . . . . . 18 . . . . . . 27 . . 10 . 72 . 8 . . 44 57 47 . 50 Kinetic 21199 | 122 403 60 149 307 1024 601 2570 . . 103 173 1467 . 32 155 2769 1585 1244 1672 168 509 1712 65 3068 . 1241 Thermal 24342 | . 601 74 135 259 1276 1263 1723 177 . . . 300 . 596 137 2573 2034 1641 139 301 996 758 232 4278 . 4849 Explosive 8160 | . . . 327 . . . 74 . . . . 417 . 35 277 . 2416 122 391 . . 1626 232 1906 . 337 Electromagnetic 7604 | 111 . . 26 134 . 711 3627 . . 382 240 81 . . . . . 480 . 372 . 683 . 299 . 458 Impact 138 | . . . . . . . . . . . . . . . . . . . . . . . . . . 138 Slashing . | . . . . . . . . . . . . . . . . . . . . . . . . . . . Piercing 72 | . . . 72 . . . . . . . . . . . . . . . . . . . . . . . Highest Corruption 96 | . 1 1 5 5 . 5 96 . 3 3 3 4 4 . . . 4 1 1 3 11 11 . 17 17 17 Average Corruption 4 | . 1 1 2 5 . 4 9 . 3 3 3 3 4 . . . 2 1 1 1 4 6 . 9 17 8 Corruption Purged 11 | . . . . . . . . . . . . . . . . . . . . . 11 . . . . . Corruption Blocked . | . . . . . . . . . . . . . . . . . . . . . . . . . . . Effects 346 | . 2 13 32 24 . 43 39 . 2 3 5 30 5 . . . 24 1 13 10 13 3 . 54 1 29 Message Errors 96 | . . 4 10 6 . 16 10 . . . 2 12 4 . . . 6 . 5 . 1 1 . 12 . 7 Matter Fused 80 | . 2 2 10 6 . 8 9 . 1 1 1 10 1 . . . 5 1 3 4 3 . . 8 . 5 Heat Flow Errors 34 | . . 1 . 2 . 6 4 . . . 1 3 . . . . 3 . 2 1 5 2 . 4 . . Energy Discharges 45 | . . 2 3 6 . 6 4 . . . . 1 . . . . 1 . 1 2 1 . . 10 1 7 Parts Rejected 8 | . . . . . . . 2 . 1 . . . . . . . 2 . . . . . . 3 . . Data Loss (minor) 32 | . . 2 5 1 . 3 4 . . 1 . 3 . . . . 4 . . 1 . . . 7 . 1 Data Loss (major) 14 | . . . 2 1 . 2 2 . . 1 . 1 . . . . 1 . . 1 1 . . 1 . 1 Misfires 14 | . . . 2 1 . 1 3 . . . . . . . . . 1 . 1 1 1 . . 2 . 1 Alerts 5 | . . 2 . 1 . . . . . . . . . . . . . . 1 . . . . 1 . . Misdirections 1 | . . . . . . . . . . . . . . . . . . . . . . . . 1 . . Weapon Failures 17 | . . . . . . 1 1 . . . 1 . . . . . 1 . . . 1 . . 5 . 7 Overload Shots . | . . . . . . . . . . . . . . . . . . . . . . . . . . . Overflow Damage 1849 | . . . 5 8 11 22 144 . . . 89 141 . 98 13 74 104 45 38 . 147 154 32 133 . 591 Projectiles 1282 | . . . . . 11 11 27 . . . 89 119 . 98 13 74 49 45 . . 147 31 10 89 . 469 Explosions 521 | . . . 5 8 . 11 117 . . . . 22 . . . . 52 . 38 . . 123 5 44 . 96 Melee 46 | . . . . . . . . . . . . . . . . . 3 . . . . . 17 . . 26 Knockbacks 132 | . . . . . 6 2 18 . . . . 7 . . 1 9 7 13 7 3 3 15 2 28 . 11 Impact 3 | . . . . . . . . . . . . . . . . . . . . . . 1 1 . . 1 Kinetic 121 | . . . . . 6 2 16 . . . . 6 . . 1 9 7 13 7 2 3 12 1 28 . 8 Secondary 8 | . . . . . . . 2 . . . . 1 . . . . . . . 1 . 2 . . . 2 Self-Inflicted Damage 1600 | . . . 144 . . 146 399 . . . . . . . . . . 359 67 . 50 171 63 201 . . Shots 49 | . . . 4 . . 9 16 . . . . . . . . . . 6 1 . 1 4 2 6 . . Rammed 24 | . . . . . 1 . . . . . . 4 . . 1 . 5 . 1 . . 4 1 2 . 5 Targets Rammed 29 | . . . . . 2 . . . . . . 8 . . 1 . 5 . 1 . . 4 1 2 . 5 Kicked . | . . . . . . . . . . . . . . . . . . . . . . . . . . . Crushed 5 | . . . . . 1 . . . . . . 4 . . . . . . . . . . . . . . Highest Temperature 703 | 20 198 102 40 277 169 299 297 291 . 254 260 223 . 116 140 321 195 216 183 233 347 474 243 536 . 703 Average Temperature 94 | 20 52 31 15 67 18 60 80 137 . 114 68 57 . 61 72 79 86 102 58 44 73 145 121 152 . 217 Received Heat Transfer 6620 | . 117 18 . 186 756 327 1221 54 . . . 141 . . 26 211 273 255 170 45 . 321 30 1596 . 873 Effects 38 | . . . . . . 1 . . . 1 . . . . . . . . . . . 2 1 9 . 24 Shutdowns 11 | . . . . . . . . . . . . . . . . . . . . . . 1 . 4 . 6 Energy Bleed 4 | . . . . . . . . . . . . . . . . . . . . . . . . . . 4 Interference 5 | . . . . . . 1 . . . 1 . . . . . . . . . . . . 1 1 . 1 Matter Decay 5 | . . . . . . . . . . . . . . . . . . . . . . . . 1 . 4 Short Circuit 5 | . . . . . . . . . . . . . . . . . . . . . . 1 . 3 . 1 Damage (minor) 3 | . . . . . . . . . . . . . . . . . . . . . . . . . . 3 Damage (major) 2 | . . . . . . . . . . . . . . . . . . . . . . . . . . 2 Damage (core) 3 | . . . . . . . . . . . . . . . . . . . . . . . . . . 3 Siege Activations 39 | . . . . . . . . . . . . . . . . 8 6 4 3 2 1 1 . 7 . 7 Total Turns 633 | . . . . . . . . . . . . . . . . 114 47 79 33 8 3 29 . 152 . 168 Longest Duration 44 | . . . . . . . . . . . . . . . . 28 14 34 16 6 3 29 . 43 . 44 Robots Corrupted 21 | . . . . . . 3 11 . . 1 2 . . . . . . 1 . 1 . . . 1 . 1 Combat Hostiles 16 | . . . . . . 3 10 . . . . . . . . . . 1 . . . . . 1 . 1 Parts Fried 39 | 1 . . . . 2 3 18 . . 3 2 . . . . . . 1 . 1 . 5 . 1 . 2 Impact Corruptions 6 | . . . . . 1 . . . . . . 1 . . . . 1 . . . . . 2 . . 1 Robots Melted 11 | . . . . . 2 . 1 . . . . . . 1 1 2 . 1 . . . 1 . . . 2 Combat Hostiles 6 | . . . . . 2 . 1 . . . . . . 1 . . . . . . . 1 . . . 1 Parts Melted 44 | . . . . . 2 1 4 1 . . . . . 2 3 7 2 5 . . 1 2 . 1 . 13 Heat Transferred 26033 | . 1221 148 240 446 2109 1454 1890 259 . . . 450 . 900 200 3648 2900 1950 200 . 700 825 . 2275 . 4218 Parts Sabotaged 1 | . . . . . . . . . . . . . . . . . . . . . . . . . . 1 Parts Stolen 3 | . . . . . . . . . . . . 3 . . . . . . . . . . . . . . Parts Stripped . | . . . . . . . . . . . . . . . . . . . . . . . . . . . Power Chain Reactions 10 | . . . . 1 . 3 5 . . . . . . . . . . . . . 1 . . . . . Missiles Intercepted . | . . . . . . . . . . . . . . . . . . . . . . . . . . . Latent Energy Used 883 | . . . . . . 135 748 . . . . . . . . . . . . . . . . . . . LE Corruption 20 | . . . . . . 3 17 . . . . . . . . . . . . . . . . . . . Alert | -11 -10 -10 -10 -9 -8 -8 -7 -6 -6 -6 -6 -6 -6 -5 -5 -5 -5 -4 -4 -4 -4 -4 -3 -3 -3 -2 ------- Run | Scr Mat Min Exi Min Mat Gar Fac Fac Was Fac Low Low Zio Pro Fac Gar Fac Fac Ext Cet Arc Hub Res Arm Lab Res Peak Influence 2632 | 30 265 67 . 127 426 2071 2632 1351 461 630 . . . . 156 1815 1010 1170 918 910 644 918 666 1179 . 1050 Initial 1281 | . 19 34 . . 48 279 1087 1281 426 322 . . . . 12 . 952 494 573 360 307 158 481 263 . . Average 565 | 14 125 32 . 36 227 1102 1230 1233 435 519 . . . . 71 634 632 663 438 623 508 408 512 732 . 351 Maximum Alert Level 5 | . 1 . . . 2 5 5 4 2 2 . . . . . 5 3 4 3 3 2 3 2 4 . 3 Low Security (%) 28 | 100 95 100 . 100 39 . . . . . . . . . 100 16 . . 21 . . 29 . . . 57 Level 1 15 | . 4 . . . 58 9 . . . 19 . . . . . 23 35 5 29 10 9 28 . 15 . . Level 2 23 | . . . . . 2 17 8 . 100 80 . . . . . 23 15 65 31 34 90 29 100 39 . 8 Level 3 19 | . . . . . . 19 48 6 . . . . . . . 20 49 22 16 55 . 13 . 18 . 33 Level 4 9 | . . . . . . 38 19 93 . . . . . . . 9 . 6 . . . . . 26 . . Level 5 2 | . . . . . . 14 10 . . . . . . . . 5 . . . . . . . . . . High Security 1 | . . . . . . . 12 . . . . . . . . . . . . . . . . . . . Max Security . | . . . . . . . . . . . . . . . . . . . . . . . . . . . Squads Dispatched 78 | . 3 . . . 5 . 21 . . 1 . . . . 2 . 10 6 1 1 . 4 3 13 . 8 Investigation 15 | . 2 . . . 1 . 4 . . 1 . . . . . . . 2 . 1 . 3 . 1 . . Extermination 16 | . . . . . . . 2 . . . . . . . 1 . 3 2 . . . . 1 4 . 3 Reinforcement 22 | . 1 . . . 3 . 2 . . . . . . . 1 . 4 2 1 . . 1 1 3 . 3 Assault 24 | . . . . . . . 13 . . . . . . . . . 3 . . . . . 1 5 . 2 Garrison 1 | . . . . . 1 . . . . . . . . . . . . . . . . . . . . . Intercept . | . . . . . . . . . . . . . . . . . . . . . . . . . . . Searches Triggered 1 | . . . . . . . . . . . . . . . . . . . . . . . . . . 1 Construction Impeded 5 | . . . . . 1 . 1 . . . . . . . . . 2 . 1 . . . . . . . Haulers Reinforced 3 | . . . . . . . 1 . . . . . . . . . 1 1 . . . . . . . . Active Scanning Responses . | . . . . . . . . . . . . . . . . . . . . . . . . . . . Cargo Convoy Interrupts . | . . . . . . . . . . . . . . . . . . . . . . . . . . . Stealth | -11 -10 -10 -10 -9 -8 -8 -7 -6 -6 -6 -6 -6 -6 -5 -5 -5 -5 -4 -4 -4 -4 -4 -3 -3 -3 -2 --------- Run | Scr Mat Min Exi Min Mat Gar Fac Fac Was Fac Low Low Zio Pro Fac Gar Fac Fac Ext Cet Arc Hub Res Arm Lab Res Distress Signals 26 | . 1 . . . 1 . 3 1 . 1 . . . . . . 5 1 2 2 . 1 . 3 . 5 Communications Jammed 3 | . . . . . . . . . . 3 . . . . . . . . . . . . . . . . Distress Signals 3 | . . . . . . . . . . 3 . . . . . . . . . . . . . . . . Times Spotted 643 | . 25 4 8 10 32 38 118 11 4 7 1 19 . 3 6 40 44 20 32 22 19 24 12 90 . 54 Peak Tracking Total 22 | . 3 2 9 3 6 3 22 6 4 5 1 3 . 1 4 5 6 6 5 5 2 8 5 12 . 19 Tactical Retreats 42 | . 1 . . . 4 1 9 4 . 2 . 2 . . . 5 . 2 1 . . 1 1 4 . 5 Traps | -11 -10 -10 -10 -9 -8 -8 -7 -6 -6 -6 -6 -6 -6 -5 -5 -5 -5 -4 -4 -4 -4 -4 -3 -3 -3 -2 ------- Run | Scr Mat Min Exi Min Mat Gar Fac Fac Was Fac Low Low Zio Pro Fac Gar Fac Fac Ext Cet Arc Hub Res Arm Lab Res Traps Triggered 26 | . 1 . . . . 4 3 1 . . . . . . . 5 . . 6 . . 1 . 5 . . Indirectly 2 | . . . . . . 1 . . . . . . . . . . . . . . . 1 . . . . Trap Hack Attempts . | . . . . . . . . . . . . . . . . . . . . . . . . . . . Triggered . | . . . . . . . . . . . . . . . . . . . . . . . . . . . Disarmed . | . . . . . . . . . . . . . . . . . . . . . . . . . . . Reprogrammed . | . . . . . . . . . . . . . . . . . . . . . . . . . . . Reused . | . . . . . . . . . . . . . . . . . . . . . . . . . . . Traps Extracted . | . . . . . . . . . . . . . . . . . . . . . . . . . . . Installed 3 | . . . . 3 . . . . . . . . . . . . . . . . . . . . . . Triggered 1 | . . . . . . . . . . . . 1 . . . . . . . . . . . . . . Machines | -11 -10 -10 -10 -9 -8 -8 -7 -6 -6 -6 -6 -6 -6 -5 -5 -5 -5 -4 -4 -4 -4 -4 -3 -3 -3 -2 ---------- Run | Scr Mat Min Exi Min Mat Gar Fac Fac Was Fac Low Low Zio Pro Fac Gar Fac Fac Ext Cet Arc Hub Res Arm Lab Res Machines Disabled 108 | . 1 . 2 1 2 10 30 . . 3 . 1 . . 1 5 6 17 1 1 3 11 . 11 . 2 Max in Single Turn 8 | . 1 . 1 1 1 2 8 . . 3 . 1 . . 1 1 2 6 . 1 1 6 . 2 . 2 Garrison Access 2 | . . . . . . . 2 . . . . . . . . . . . . . . . . . . . Garrison Relay 6 | . . . . . . 4 . . . . . . . . . 2 . . . . . . . . . . Phase Generator 1 | . . . . . . 1 . . . . . . . . . . . . . . . . . . . . Network Hub 1 | . . . . . . . . . . . . . . . . . . . . . . 1 . . . . Machines Sabotaged . | . . . . . . . . . . . . . . . . . . . . . . . . . . . Garrisons Compromised . | . . . . . . . . . . . . . . . . . . . . . . . . . . . Overloaded Fab Kills . | . . . . . . . . . . . . . . . . . . . . . . . . . . . Hacking | -11 -10 -10 -10 -9 -8 -8 -7 -6 -6 -6 -6 -6 -6 -5 -5 -5 -5 -4 -4 -4 -4 -4 -3 -3 -3 -2 --------- Run | Scr Mat Min Exi Min Mat Gar Fac Fac Was Fac Low Low Zio Pro Fac Gar Fac Fac Ext Cet Arc Hub Res Arm Lab Res Machines Accessed 97 | . 10 1 2 1 8 5 8 6 . 7 . 2 . . 10 3 3 3 11 1 . 3 3 6 . 4 Terminals 68 | . 8 . . 1 5 5 5 2 . 6 . 1 . . 5 3 1 3 10 1 . 3 3 3 . 3 Fabricators 8 | . . . . . . . 1 3 . . . . . . 1 . 2 . . . . . . 1 . . Repair Stations 8 | . . . . . 1 . 1 . . . . . . . 2 . . . 1 . . . . 2 . 1 Recycling Units 7 | . 2 . . . 1 . 1 1 . 1 . . . . 1 . . . . . . . . . . . Scanalyzers . | . . . . . . . . . . . . . . . . . . . . . . . . . . . Garrison Access 2 | . . . . . 1 . . . . . . . . . 1 . . . . . . . . . . . Total Hacks 272 | . 33 1 2 2 26 10 20 17 . 21 . 2 . . 41 6 4 6 35 2 . 4 10 20 . 10 Successful 130 | . 17 1 2 1 13 . 7 7 . 11 . 2 . . 26 3 2 1 22 . . 4 2 7 . 2 Failed 141 | . 16 . . 1 12 10 13 10 . 10 . . . . 15 3 2 5 13 2 . . 8 13 . 8 Catastrophic 35 | . 3 . . . 1 3 2 3 . 4 . . . . 1 1 1 1 4 . . . 3 6 . 2 Database Lockouts 1 | . . . . . 1 . . . . . . . . . . . . . . . . . . . . . Manual 106 | . 21 . 1 2 11 . 7 4 . 6 . 1 . . 23 . 2 . 8 1 . 4 8 . . 7 Terminals 193 | . 27 . . 2 16 10 12 7 . 19 . 1 . . 25 6 2 6 23 2 . 4 10 12 . 9 Fabricators 19 | . . . . . . . 2 8 . . . . . . 3 . 2 . . . . . . 4 . . Repair Stations 37 | . . . . . 5 . 4 . . . . . . . 11 . . . 12 . . . . 4 . 1 Recycling Units 17 | . 6 . . . 4 . 2 2 . 2 . . . . 1 . . . . . . . . . . . Scanalyzers . | . . . . . . . . . . . . . . . . . . . . . . . . . . . Garrison Access 2 | . . . . . 1 . . . . . . . . . 1 . . . . . . . . . . . Terminal Hacks 60 | . 11 1 2 1 6 . . 2 . 6 . 2 . . 9 3 1 1 11 . . 1 1 2 . . Record 2 | . . . 1 . . . . . . . . 1 . . . . . . . . . . . . . . Part Schematic 1 | . . . . . . . . . . . . . . . 1 . . . . . . . . . . . Robot Schematic 3 | . . . . . . . . . . . . . . . . . . . 3 . . . . . . . Robot Analysis 15 | . 8 . . 1 2 . . . . . . . . . 4 . . . . . . . . . . . Prototype ID Bank 10 | . 3 . . . 3 . . . . 3 . . . . . . . . 1 . . . . . . . Open Door 8 | . . 1 . . . . . . . . . 1 . . . 1 . 1 4 . . . . . . . Level Access Points 2 | . . . . . . . . . . 1 . . . . . . . . . . . 1 . . . . Branch Access Points 1 | . . . . . . . . . . 1 . . . . . . . . . . . . . . . . Emergency Access Points 1 | . . . . . . . . . . . . . . . . 1 . . . . . . . . . . Terminal Index 2 | . . . . . . . . . . . . . . . 1 . . . . . . . 1 . . . Unreport Threat 8 | . . . . . . . . 2 . . . . . . . . 1 . 3 . . . . 2 . . Recall Extermination 1 | . . . . . . . . . . . . . . . 1 . . . . . . . . . . . Hauler Manifests 3 | . . . . . 1 . . . . 1 . . . . 1 . . . . . . . . . . . Registered Components 1 | . . . . . . . . . . . . . . . 1 . . . . . . . . . . . Security Stations 1 | . . . . . . . . . . . . . . . . 1 . . . . . . . . . . EX-Prototype ID Bank 1 | . . . 1 . . . . . . . . . . . . . . . . . . . . . . . Fabricator Hacks 5 | . . . . . . . . 3 . . . . . . . . 1 . . . . . . 1 . . Network Status 1 | . . . . . . . . 1 . . . . . . . . . . . . . . . . . . Load Schematic 1 | . . . . . . . . . . . . . . . . . . . . . . . . 1 . . Build 3 | . . . . . . . . 2 . . . . . . . . 1 . . . . . . . . . Repair Station Hacks 28 | . . . . . 3 . 4 . . . . . . . 7 . . . 10 . . . . 4 . . Scan Component 15 | . . . . . 2 . 2 . . . . . . . 4 . . . 5 . . . . 2 . . Repair 13 | . . . . . 1 . 2 . . . . . . . 3 . . . 5 . . . . 2 . . Recycling Unit Hacks 8 | . 3 . . . 1 . 1 1 . 1 . . . . 1 . . . . . . . . . . . Report Inventory 1 | . 1 . . . . . . . . . . . . . . . . . . . . . . . . . Retrieve Components 7 | . 2 . . . 1 . 1 1 . 1 . . . . 1 . . . . . . . . . . . Scanalyzer . | . . . . . . . . . . . . . . . . . . . . . . . . . . . Garrison Access Hacks 2 | . . . . . 1 . . . . . . . . . 1 . . . . . . . . . . . Unlock Access 2 | . . . . . 1 . . . . . . . . . 1 . . . . . . . . . . . Unauthorized Hacks 27 | . 3 . . . 2 . 2 1 . 4 . . . . 8 . . . 1 . . 3 1 . . 2 Terminals 19 | . . . . . . . 2 . . 4 . . . . 6 . . . 1 . . 3 1 . . 2 Track 1 | . . . . . . . . . . . . . . . 1 . . . . . . . . . . . Assimilate 5 | . . . . . . . 1 . . 2 . . . . 1 . . . . . . . . . . 1 Botnet 8 | . . . . . . . . . . 2 . . . . 3 . . . 1 . . . 1 . . 1 Operators 2 | . . . . . . . 1 . . . . . . . 1 . . . . . . . . . . . Sabotage 3 | . . . . . . . . . . . . . . . . . . . . . . 3 . . . . Fabricators 3 | . . . . . . . . 1 . . . . . . 2 . . . . . . . . . . . Fabnet 2 | . . . . . . . . 1 . . . . . . 1 . . . . . . . . . . . Haulers 1 | . . . . . . . . . . . . . . . 1 . . . . . . . . . . . Repair Stations . | . . . . . . . . . . . . . . . . . . . . . . . . . . . Recycling Units 5 | . 3 . . . 2 . . . . . . . . . . . . . . . . . . . . . Reject 2 | . 1 . . . 1 . . . . . . . . . . . . . . . . . . . . . Mask 2 | . 1 . . . 1 . . . . . . . . . . . . . . . . . . . . . Tunnel 1 | . 1 . . . . . . . . . . . . . . . . . . . . . . . . . Scanalyzers . | . . . . . . . . . . . . . . . . . . . . . . . . . . . Garrison Access . | . . . . . . . . . . . . . . . . . . . . . . . . . . . Data Cores Recovered . | . . . . . . . . . . . . . . . . . . . . . . . . . . . Used . | . . . . . . . . . . . . . . . . . . . . . . . . . . . Hacking Detections 81 | . 8 . . 1 7 5 7 6 . 7 . 1 . . 9 2 2 2 9 1 . 1 3 6 . 4 Full Trace Events 14 | . 1 . . . 2 3 3 . . 1 . . . . . . . 2 . 1 . . . 1 . . Feedback Events . | . . . . . . . . . . . . . . . . . . . . . . . . . . . Feedback Blocked . | . . . . . . . . . . . . . . . . . . . . . . . . . . . Robot Schematics Acquired 3 | . . . . . . . . . . . . . . . . . . . 3 . . . . . . . Robots Built . | . . . . . . . . . . . . . . . . . . . . . . . . . . . Authchips . | . . . . . . . . . . . . . . . . . . . . . . . . . . . Time . | . . . . . . . . . . . . . . . . . . . . . . . . . . . Total Robot Build Rating . | . . . . . . . . . . . . . . . . . . . . . . . . . . . Part Schematics Acquired 1 | . . . . . . . . . . . . . . . 1 . . . . . . . . . . . Parts Built 5 | . . . . . . . . 3 . . . . . . . . 2 . . . . . . . . . Authchips . | . . . . . . . . . . . . . . . . . . . . . . . . . . . Time 201 | . . . . . . . . 148 . . . . . . . . 53 . . . . . . . . . Total Part Build Rating 28 | . . . . . . . . 16 . . . . . . . . 12 . . . . . . . . . Parts Repaired 13 | . . . . . 1 . 2 . . . . . . . 3 . . . 5 . . . . 2 . . Time 613 | . . . . . 38 . 82 . . . . . . . 103 . . . 286 . . . . 104 . . Parts Recycled . | . . . . . . . . . . . . . . . . . . . . . . . . . . . Recycled Matter . | . . . . . . . . . . . . . . . . . . . . . . . . . . . Retrieved Matter . | . . . . . . . . . . . . . . . . . . . . . . . . . . . Retrieved Components 38 | . 12 . . . 9 . 10 . . . . . . . 7 . . . . . . . . . . . Parts Scanalyzed . | . . . . . . . . . . . . . . . . . . . . . . . . . . . Part Schematics Acquired . | . . . . . . . . . . . . . . . . . . . . . . . . . . . Parts Damaged . | . . . . . . . . . . . . . . . . . . . . . . . . . . . Bothacking | -11 -10 -10 -10 -9 -8 -8 -7 -6 -6 -6 -6 -6 -6 -5 -5 -5 -5 -4 -4 -4 -4 -4 -3 -3 -3 -2 ------------ Run | Scr Mat Min Exi Min Mat Gar Fac Fac Was Fac Low Low Zio Pro Fac Gar Fac Fac Ext Cet Arc Hub Res Arm Lab Res Used RIF Installer 2 | . . . . . . 1 . . . . . . . . . 1 . . . . . . . . . . Patrol Navigation 1 | . . . . . . . . . . . . . . . . 1 . . . . . . . . . . Robots Hacked 32 | . . . . . . . 8 . . . . 2 . . . 9 4 1 3 . . 2 3 . . . Non-combat 4 | . . . . . . . 3 . . . . . . . . . 1 . . . . . . . . . Combat 28 | . . . . . . . 5 . . . . 2 . . . 9 3 1 3 . . 2 3 . . . Robot Hacks Applied 30 | . . . . . . . 10 . . . . 2 . . . 6 9 . . . . . 3 . . . parse_system 1 | . . . . . . . 1 . . . . . . . . . . . . . . . . . . . find_station 2 | . . . . . . . 2 . . . . . . . . . . . . . . . . . . . purge_threat 7 | . . . . . . . 1 . . . . . . . . . 6 . . . . . . . . . find_terminals 1 | . . . . . . . . . . . . . . . . . 1 . . . . . . . . . summon_haulers 1 | . . . . . . . . . . . . . . . . . 1 . . . . . . . . . map_route 1 | . . . . . . . 1 . . . . . . . . . . . . . . . . . . . find_shortcuts 1 | . . . . . . . . . . . . . . . . . . . . . . . 1 . . . scatter_targeting 1 | . . . . . . . 1 . . . . . . . . . . . . . . . . . . . overload_power 1 | . . . . . . . 1 . . . . . . . . . . . . . . . . . . . amplify_resonance 1 | . . . . . . . . . . . . 1 . . . . . . . . . . . . . . reboot_system 1 | . . . . . . . . . . . . . . . . 1 . . . . . . . . . . overwrite_iff 2 | . . . . . . . 2 . . . . . . . . . . . . . . . . . . . formatsys_high 10 | . . . . . . . 1 . . . . 1 . . . 5 1 . . . . . 2 . . . Relay Couplers Released 28 | . . . . . . 20 1 . . . . . . . . 7 . . . . . . . . . . Machine Destruction 24 | . . . . . . 16 1 . . . . . . . . 7 . . . . . . . . . . Programmers 4 | . . . . . . 4 . . . . . . . . . . . . . . . . . . . . Attached 11 | . . . . . . 2 2 1 . . . . . . . 2 3 . . . . . 1 . . . Fabnet Peak Effective % 4 | . . . . . . . . . . . . . . 3 3 3 3 4 4 4 4 4 1 1 1 . Autooverrided 12 | . . . . . . . . . . . . . . . . 4 2 1 3 . . 2 . . . . Robots Rewired 34 | . . . . . . 13 . . . . . . . . . . . . 15 . . . . 6 . . Allies Hacked 1 | . . . . . . . . . . . . . . . . . . . . . . . . 1 . . Hacks Repelled . | . . . . . . . . . . . . . . . . . . . . . . . . . . . Allies | -11 -10 -10 -10 -9 -8 -8 -7 -6 -6 -6 -6 -6 -6 -5 -5 -5 -5 -4 -4 -4 -4 -4 -3 -3 -3 -2 -------- Run | Scr Mat Min Exi Min Mat Gar Fac Fac Was Fac Low Low Zio Pro Fac Gar Fac Fac Ext Cet Arc Hub Res Arm Lab Res Total Allies 88 | . . 5 . . . 13 4 . . 2 . 1 . . . 10 3 1 24 5 . 2 2 16 . . Largest Group 13 | . . 5 4 . . 6 2 . . 2 . 1 . . . 5 2 1 13 13 4 3 1 10 . . Highest-Rated Group 674 | . . 78 47 . . 142 42 . . 36 . 29 . . . 165 59 42 674 674 425 281 58 481 . . Highest-Rated Ally 159 | . . 31 16 . . 40 26 . . 26 . 29 . . . 51 30 42 159 144 144 96 58 58 . . Total Orders 2 | . . . . . . . . . . . . . . . . . . . . . 2 . . . . . STAY 1 | . . . . . . . . . . . . . . . . . . . . . 1 . . . . . FOLLOW 1 | . . . . . . . . . . . . . . . . . . . . . 1 . . . . . Ally Attacks 609 | . . 23 14 8 . 58 10 . . . . 2 . . . 69 28 1 121 124 25 12 6 108 . . Total Damage 17009 | . . 262 49 20 . 1337 202 . . . . 37 . . . 1142 347 39 3762 4213 883 457 201 4058 . . Kills 98 | . . 4 . . . 18 2 . . . . . . . . 11 3 . 20 19 4 2 . 15 . . Allies Corrupted 3 | . . . 2 . . . . . . . . . . . . . . . . 1 . . . . . . Allies Melted . | . . . . . . . . . . . . . . . . . . . . . . . . . . . Intel | -11 -10 -10 -10 -9 -8 -8 -7 -6 -6 -6 -6 -6 -6 -5 -5 -5 -5 -4 -4 -4 -4 -4 -3 -3 -3 -2 ------- Run | Scr Mat Min Exi Min Mat Gar Fac Fac Was Fac Low Low Zio Pro Fac Gar Fac Fac Ext Cet Arc Hub Res Arm Lab Res Robot Analysis Total 15 | . 8 . . 1 2 . . . . . . . . . 4 . . . . . . . . . . . Derelict Logs Recovered 4 | . . 1 . . . . . . . . 2 1 . . . . . . . . . . . . . . Drone Launches 7 | . . . 3 4 . . . . . . . . . . . . . . . . . . . . . . Drone Recoveries 4 | . . . 1 3 . . . . . . . . . . . . . . . . . . . . . . Exploration | -11 -10 -10 -10 -9 -8 -8 -7 -6 -6 -6 -6 -6 -6 -5 -5 -5 -5 -4 -4 -4 -4 -4 -3 -3 -3 -2 ------------- Run | Scr Mat Min Exi Min Mat Gar Fac Fac Was Fac Low Low Zio Pro Fac Gar Fac Fac Ext Cet Arc Hub Res Arm Lab Res Turns Passed 30069 | 111 1636 1517 2690 1068 1282 2463 2039 273 45 241 314 1136 195 499 819 2597 2153 1182 2091 520 706 560 627 2123 15 1167 Spaces Moved 12631 | 31 537 571 843 388 519 1232 866 385 151 607 401 658 209 354 381 868 697 373 642 166 141 144 229 690 10 538 Core 176 | . . . . . . . 21 . . . . . . . . . . . . . . . . 25 . 130 Treads 8037 | . . . 178 347 434 1232 786 . . . 113 307 . 32 381 868 697 373 642 166 141 144 229 549 10 408 Legs 1970 | 31 537 571 665 41 85 . 1 34 . . . . . 5 . . . . . . . . . . . . Wheels 1025 | . . . . . . . 58 . . . . 351 209 317 . . . . . . . . . 90 . . Hover 26 | . . . . . . . . . . . . . . . . . . . . . . . . 26 . . Flight 1397 | . . . . . . . . 351 151 607 288 . . . . . . . . . . . . . . . Fastest Speed 6 | 120 120 260 240 240 156 156 50 6 21 6 21 93 93 90 160 162 240 246 244 244 240 240 240 50 160 50 Average Speed 182 | 120 259 260 256 242 176 157 168 34 21 20 61 138 93 119 162 232 243 246 244 244 240 243 240 207 160 136 Slowest Speed 3750 | 120 260 260 330 400 260 235 245 120 21 21 166 166 93 190 165 243 245 246 246 245 245 246 240 3750 160 243 Overloaded Moves 55 | . . . . . . . . 19 . 36 . . . . . . . . . . . . . . . . Propulsion Burnouts . | . . . . . . . . . . . . . . . . . . . . . . . . . . . Robots Hopped 11 | . . . . . . . . 5 . 5 1 . . . . . . . . . . . . . . . Cave-ins Triggered 1 | . . . . . . . . . . . . . . . . . . . . . . . . . . 1 Exploration Rate (%) 49 | 3 96 99 77 83 54 93 20 16 80 21 56 74 14 55 13 98 22 11 81 76 77 25 8 47 6 20 Regions Visited 26 Branch Regions 13 Pre-discovered Areas 4 | . 1 . 1 . . . . . . . 1 1 . . . . . . . . . . . . . . Known Exits Taken 10 | . . . . . 1 . . . . 1 1 1 1 1 1 . . . . . . 1 . 1 1 . Unknown Exits Taken 12 | 1 1 1 1 1 . . 1 . . . . . . . . . 1 1 1 1 1 . 1 . . . Scrap Searched 12 | . . 1 . 2 . . . . . . 3 3 . 3 . . . . . . . . . . . . Spaces Dug 87 | . . . 15 . . . 1 1 . . . . . . 10 . 23 13 . . . 2 . 4 . 18 Terrain Destroyed 1387 | . . . 44 9 9 108 161 1 . 1 . 45 . 24 19 23 194 150 71 1 28 246 17 160 . 76 Melee 19 | . . . . . . . . . . . . . . . . . . . . . . . . 1 . 18 Projectile 391 | . . . 12 2 8 7 15 1 . 1 . 19 . 8 16 23 50 30 25 1 28 31 2 78 . 34 AOE 975 | . . . 32 6 . 101 146 . . . . 26 . 16 3 . 144 120 46 . . 215 15 81 . 24 Terrain Rammed . | . . . . . . . . . . . . . . . . . . . . . . . . . . . Walls Destroyed . | . . . . . . . . . . . . . . . . . . . . . . . . . . . Machines Disabled . | . . . . . . . . . . . . . . . . . . . . . . . . . . . Actions | -11 -10 -10 -10 -9 -8 -8 -7 -6 -6 -6 -6 -6 -6 -5 -5 -5 -5 -4 -4 -4 -4 -4 -3 -3 -3 -2 --------- Run | Scr Mat Min Exi Min Mat Gar Fac Fac Was Fac Low Low Zio Pro Fac Gar Fac Fac Ext Cet Arc Hub Res Arm Lab Res Total 17466 | 74 671 591 1332 464 737 1584 1234 504 163 710 452 822 209 406 548 1254 1005 525 1093 241 414 251 288 1107 9 778 Wait 2293 | 27 35 2 409 24 73 92 137 79 4 68 25 67 . 12 112 138 146 65 302 14 212 40 19 100 . 91 Move 12588 | 30 536 570 842 387 519 1230 865 375 150 598 398 657 208 353 381 867 696 372 641 165 140 144 228 689 9 538 Hop 9 | . . . . . . . . 5 . 3 1 . . . . . . . . . . . . . . . Pick Up 251 | 1 16 2 10 4 13 17 24 5 3 8 1 5 1 3 6 39 14 7 5 8 . 3 8 37 . 11 Fast Attach 171 | 1 2 2 6 3 9 2 9 13 1 4 4 9 . 4 12 9 10 1 10 4 7 . 3 37 . 9 Attach 128 | . . 1 2 2 5 7 21 3 1 1 2 2 . 3 1 1 8 4 3 2 . 4 3 29 . 23 Detach 29 | . 2 1 1 . . 1 2 5 . 1 1 . . 1 . 1 1 1 1 . 3 . . 5 . 2 Swap 216 | . 8 1 9 7 16 28 21 . 1 1 3 6 . . 1 14 20 11 11 6 5 8 5 25 . 9 Drop 296 | . 13 4 16 7 25 29 13 5 3 12 4 13 . 4 11 33 21 3 9 15 5 3 4 34 . 10 Fire 1253 | 15 59 8 33 27 75 85 142 14 . 14 13 51 . 26 23 145 84 61 48 27 42 46 16 139 . 60 Melee 37 | . . . 4 . . 12 . . . . . . . . . . . . . . . . . 1 . 20 Ram . | . . . . . . . . . . . . . . . . . . . . . . . . . . . Kick . | . . . . . . . . . . . . . . . . . . . . . . . . . . . Crush 28 | . . . . . 2 . . . . . . 8 . . 1 . 5 . 1 . . 3 1 2 . 5 Escape Stasis 27 | . . . . . . . . . . . . . . . . 6 . . 12 . . . . 9 . . Rewire 137 | . . . . . . 81 . . . . . 4 . . . 1 . . 50 . . . 1 . . . Trap 3 | . . . . 3 . . . . . . . . . . . . . . . . . . . . . . Miscellaneous . | . . . . . . . . . . . . . . . . . . . . . . . . . . . Route ------- -11/Scrapyard -10/Materials (discovered 5 exits: [*Mat x3] / *Min x2) -10/Mines (discovered 3 exits: [*Mat x2] / *Exi) -10/Exiles -9/Mines -8/Materials (discovered 5 exits: *Fac x3 / [*Sto] / Gar) -8/Garrison (discovered 3 exits: *Fac x3) -7/Factory (discovered 2 exits: *Fac x2) -6/Factory -6/Waste -6/Factory (discovered 6 exits: Fac x4 / *Low x2) -6/Lower Caves -6/Lower Caves (discovered 2 exits: *Fac / *Zio) -6/Zion -5/Proximity Caves -5/Factory -5/Garrison (discovered 3 exits: *Fac x3) -5/Factory -4/Factory -4/Extension (discovered 2 exits: *Res / *Cet) -4/Cetus (discovered 2 exits: *Res / [*Arc]) -4/Archives (discovered 3 exits: *Res / *Hub x2) -4/Hub_04(d) (discovered 4 exits: *Res x4) -3/Research -3/Armory -3/Lab -2/Research History --------- Turn | Location | Event 17 | -11/Scrapyard | Discovered new exit (range 3) 112 | -11/Scrapyard | Entered Materials 316 | -10/Materials | Build established: Mutant 475 | -10/Materials | Discovered new exit (range 6) 683 | -10/Materials | Discovered new exit (range 12) 1010 | -10/Materials | Build established: Scavenger-Mutant 1059 | -10/Materials | Discovered new exit (range 16) 1295 | -10/Materials | Discovered new exit (range 8) 1470 | -10/Materials | Discovered new exit (range 16) 1610 | -10/Materials | Build established: Mutant 1748 | -10/Materials | Entered Mines 1819 | -10/Mines | Discovered new exit (range 8) 1865 | -10/Mines | Assisted by bots powering up and referring to "LRC-V3" 1943 | -10/Mines | Deemed a non-threat by the Exiles lab entrance 1946 | -10/Mines | Discovered new exit (range 5) 2046 | -10/Mines | A weapon hastily lodged in a ceiling crevice suddenly fell to the ground 2109 | -10/Mines | Learned Materials terminal intel 2697 | -10/Mines | Discovered new exit (range 8) 2925 | -10/Mines | Found the Drone Emporium 2937 | -10/Mines | Found Prototype Device 2937 | -10/Mines | Identified Thief Drone Bay 3265 | -10/Mines | Entered Exiles 3265 | -10/Exiles | Accompanied by 4 allies 3332 | -10/Exiles | Met 8R-AWN 3374 | -10/Exiles | Met EX-HEX 3529 | -10/Exiles | Met EX-DEC 3577 | -10/Exiles | Visited The Gauntlet 3713 | -10/Exiles | Learned location of Zion (-6) 3927 | -10/Exiles | Met EX-BIN 3968 | -10/Exiles | Aligned with FarCom system 3971 | -10/Exiles | Given EX-Vault access code 4044 | -10/Exiles | Opened EX-Vault 4062 | -10/Exiles | Found YOLO Cannon 4134 | -10/Exiles | Found Latent Energy Streamer 4185 | -10/Exiles | Warned to stay clear of 0b10 Research branches 4438 | -10/Exiles | Found Superbattery 5031 | -10/Exiles | Attacked by the Exiles 5039 | -10/Exiles | Found Prototype Ballistic Gun 5044 | -10/Exiles | Found Prototype Device 5075 | -10/Exiles | Found Prototype Ballistic Gun 5075 | -10/Exiles | Identified 8R-AWN's Boregun (x2) 5084 | -10/Exiles | Destroyed 7 combat bots 5124 | -10/Exiles | Discovered new exit (range 14) 5955 | -10/Exiles | Stole three prototypes: Superbattery, Latent Energy Streamer, YOLO Cannon 5955 | -10/Exiles | Entered Mines 5989 | -9/Mines | Core integrity fell below 50% 6360 | -9/Mines | Identified AS-neutralizer No. 17b 6489 | -9/Mines | Found a hidden stash of uninstalled traps 6963 | -9/Mines | Discovered new exit (range 8) 6972 | -9/Mines | Core integrity fell below 20% 7023 | -9/Mines | Entered Materials 7023 | -8/Materials | Evolved 4 slots: Propulsion x2, Utility x2 7024 | -8/Materials | Loaded intel: 12 terminal locations 7524 | -8/Materials | Discovered new exit (range 13) 7597 | -8/Materials | Discovered new exit (range 10) 7897 | -8/Materials | Discovered new exit (range 16) 7926 | -8/Materials | Build established: Scavenger-Mutant 7987 | -8/Materials | Central database locked down 8106 | -8/Materials | Discovered new exit (range 4) 8214 | -8/Materials | Repaired Adv. Treads 8228 | -8/Materials | Garrison activated, responded to threat 8303 | -8/Materials | Destroyed 7 combat bots 8305 | -8/Materials | Identified exit to Garrison 8305 | -8/Materials | Entered Garrison 8330 | -8/Garrison | Triggered checkpoint 8442 | -8/Garrison | Triggered checkpoint 8614 | -8/Garrison | Triggered checkpoint 8685 | -8/Garrison | Discovered new exit (range 12) 8808 | -8/Garrison | Triggered checkpoint 8897 | -8/Garrison | Triggered checkpoint 9308 | -8/Garrison | Triggered checkpoint 9332 | -8/Garrison | Triggered checkpoint 9342 | -8/Garrison | Triggered checkpoint 9492 | -8/Garrison | Triggered checkpoint 9637 | -8/Garrison | Discovered new exit (range 10) 9876 | -8/Garrison | Discovered new exit (range 7) 10002 | -8/Garrison | Build established: Commander-Mutant 10052 | -8/Garrison | Garrison Relay disabled 10102 | -8/Garrison | Installed Relay Interface Framework 10318 | -8/Garrison | Phase Generator disabled 10356 | -8/Garrison | Build established: Scavenger-Mutant 10424 | -8/Garrison | Garrison Relay disabled 10676 | -8/Garrison | Garrison Relay disabled 10768 | -8/Garrison | Entered Factory 10768 | -7/Factory | Accompanied by 2 allies 10768 | -7/Factory | Evolved 2 slots: Utility x2 11093 | -7/Factory | Build established: Bothacker-Mutant 11383 | -7/Factory | Discovered new exit (range 50) 11383 | -7/Factory | Discovered new exit (range 54) 11459 | -7/Factory | Repaired Lyr. Light Armor Plating 11498 | -7/Factory | Repaired Hvy. Particle Cannon 11968 | -7/Factory | First assault squad dispatched 12292 | -7/Factory | System corruption reached 10% 12548 | -7/Factory | High security lockdown imminent 12627 | -7/Factory | System corruption reached 30% 12628 | -7/Factory | High security lockdown engaged 12628 | -7/Factory | Core integrity fell below 50% 12656 | -7/Factory | Destroyed 9 combat bots 12659 | -7/Factory | Lost 8 parts (1p2n3u2w) 12740 | -7/Factory | Destroyed 9 combat bots 12795 | -7/Factory | Released all parts (6) 12797 | -7/Factory | Core integrity fell below 20% 12807 | -7/Factory | Entered another Factory area 12807 | -6/Factory | Evolved 2 slots: Utility x1, Weapon x1 12812 | -6/Factory | Destroyed 8 combat bots 12825 | -6/Factory | Lost 11 parts (1p5n4u1w) 13036 | -6/Factory | Fabricated Hvy. Shock Bomb Launcher? 13045 | -6/Factory | Fabricated Adv. Signal Interpreter? 13080 | -6/Factory | Manually triggered Chute Trap 13080 | -6/Factory | Sucked down chute 13080 | -6/Factory | Entered Waste 13084 | -6/Waste | Spotted C-40 Crusher 13090 | -6/Waste | Spotted C-40 Crusher 13095 | -6/Waste | EMP discharged 13104 | -6/Waste | Spotted C-40 Crusher 13104 | -6/Waste | Spotted C-40 Crusher 13104 | -6/Waste | Spotted C-40 Crusher 13118 | -6/Waste | Discovered new exit (range 11) 13119 | -6/Waste | Spotted C-40 Crusher 13125 | -6/Waste | Entered Factory 13175 | -6/Factory | Identified exit to Factory 13199 | -6/Factory | Identified exit to Lower Caves 13366 | -6/Factory | Entered Lower Caves 13429 | -6/Lower Caves | Learned Factory security intel 13669 | -6/Lower Caves | Discovered new exit (range 7) 13679 | -6/Lower Caves | Identified exit to Lower Caves 13680 | -6/Lower Caves | Entered another Lower Caves area 13711 | -6/Lower Caves | Acquired the password to a Derelict Tinkerer's latest research 13723 | -6/Lower Caves | Found Prototype Special Weapon 13772 | -6/Lower Caves | Build established: Hacker-Mutant 13818 | -6/Lower Caves | Caught by Unaware searching for contraband prototypes 13841 | -6/Lower Caves | Learned location of Extension (-4) 13927 | -6/Lower Caves | Caught by Unaware searching for contraband prototypes 14037 | -6/Lower Caves | Discovered exit to Factory (range 11) 14044 | -6/Lower Caves | Attracted the attention of an 0b10 checkpoint 14791 | -6/Lower Caves | Discovered new exit (range 14) 14791 | -6/Lower Caves | Spotted US-6BI(f) 14791 | -6/Lower Caves | Spotted WI-UME(f) 14791 | -6/Lower Caves | Spotted 7P-3OO(f) 14792 | -6/Lower Caves | Encountered a Master Thief 14792 | -6/Lower Caves | Encountered a Master Thief 14792 | -6/Lower Caves | Encountered a Master Thief 14793 | -6/Lower Caves | Hvy. Linear Accelerator stolen by Master Thief 14794 | -6/Lower Caves | Prototype Special Weapon stolen by Master Thief 14798 | -6/Lower Caves | Adv. Plasma Cannon stolen by Master Thief 14815 | -6/Lower Caves | Identified exit to Zion 14816 | -6/Lower Caves | Entered Zion 14896 | -6/Zion | Discovered new exit (range 12) 14921 | -6/Zion | Found Prototype Energy Gun 14974 | -6/Zion | System corruption cleaned by Quarantine Array 15010 | -6/Zion | Identified exit to Proximity Caves 15011 | -6/Zion | Entered Proximity Caves 15433 | -5/Proximity Caves | Attracted the attention of an 0b10 checkpoint 15509 | -5/Proximity Caves | Discovered exit to Factory (range 2) 15510 | -5/Proximity Caves | Entered Factory 15510 | -5/Factory | Evolved 2 slots: Propulsion x1, Utility x1 15831 | -5/Factory | Repaired Lrn. Missile Launcher 15940 | -5/Factory | Repaired Imp. Medium Treads 15969 | -5/Factory | Repaired Adv. Plasma Cannon 16329 | -5/Factory | Identified exit to Garrison 16329 | -5/Factory | Entered Garrison 16412 | -5/Garrison | Learned Factory security intel 16428 | -5/Garrison | Triggered checkpoint 16846 | -5/Garrison | Triggered checkpoint 16846 | -5/Garrison | Spotted B-75 Beast 17122 | -5/Garrison | Triggered checkpoint 17286 | -5/Garrison | Destroyed B-75 Beast 17430 | -5/Garrison | Triggered checkpoint 17700 | -5/Garrison | Discovered new exit (range 13) 17984 | -5/Garrison | Rescued a captive Derelict 17984 | -5/Garrison | Rescued a captive Derelict 18134 | -5/Garrison | Triggered checkpoint 18212 | -5/Garrison | Triggered checkpoint 18270 | -5/Garrison | Garrison Relay disabled 18383 | -5/Garrison | Discovered new exit (range 13) 18432 | -5/Garrison | Build established: Hauler-Mutant 18520 | -5/Garrison | Triggered checkpoint 18617 | -5/Garrison | Expanded RIF knowledge: Patrol Navigation 18649 | -5/Garrison | Triggered checkpoint 18670 | -5/Garrison | Garrison Relay disabled 18761 | -5/Garrison | Local machine network offline 18861 | -5/Garrison | Discovered new exit (range 13) 18926 | -5/Garrison | Entered Factory 18926 | -5/Factory | Accompanied by 2 allies 19226 | -5/Factory | First assault squad dispatched 19485 | -5/Factory | Build established: Hauler-Tank 19799 | -5/Factory | Build established: Hauler-Mutant 20186 | -5/Factory | Build established: Hauler-Tank 20485 | -5/Factory | Fabricated Adv. Shield Generator? 20676 | -5/Factory | Local machine network offline 20841 | -5/Factory | Build established: Hauler-Mutant 21050 | -5/Factory | Discovered new exit (range 13) 21079 | -5/Factory | Entered another Factory area 21079 | -4/Factory | Evolved 2 slots: Power x1, Propulsion x1 22201 | -4/Factory | Build established: Hauler-Tank 22251 | -4/Factory | Discovered new exit (range 6) 22261 | -4/Factory | Entered Extension 22528 | -4/Extension | Rescued A7 22668 | -4/Extension | Rescued a captive Derelict 22669 | -4/Extension | Rescued a captive Derelict 22835 | -4/Extension | Repaired Imp. Heavy Treads 22892 | -4/Extension | Repaired Arm. Medium Treads 22950 | -4/Extension | Repaired Adv. Shield Generator 23007 | -4/Extension | Repaired Adv. Plasma Cannon 23065 | -4/Extension | Repaired Arm. Medium Treads 23124 | -4/Extension | Build established: Scavenger-Mutant 23491 | -4/Extension | Spotted B-86 Titan 23504 | -4/Extension | Destroyed B-86 Titan 23515 | -4/Extension | Spotted B-86 Titan 23543 | -4/Extension | Allies destroyed B-86 Titan 23648 | -4/Extension | Build established: Hauler-Tank 23660 | -4/Extension | Rescued a captive Derelict 24089 | -4/Extension | Rescued a captive Derelict 24090 | -4/Extension | Rescued a captive Derelict 24116 | -4/Extension | Local machine network offline 24311 | -4/Extension | Discovered new exit (range 10) 24314 | -4/Extension | Discovered new exit (range 6) 24352 | -4/Extension | Entered Cetus 24352 | -4/Cetus | Accompanied by 13 allies (A7) 24357 | -4/Cetus | Acquired a Cetus Manufacturing Module code from A7 24379 | -4/Cetus | Spotted Cetus Guard 24379 | -4/Cetus | Spotted Cetus Guard 24380 | -4/Cetus | Spotted Cetus Guard 24382 | -4/Cetus | Spotted Cetus Guard 24396 | -4/Cetus | Allies destroyed Cetus Guard 24400 | -4/Cetus | Allies destroyed Cetus Guard 24403 | -4/Cetus | Destroyed Cetus Guard 24404 | -4/Cetus | Allies destroyed Cetus Guard 24518 | -4/Cetus | Started Cetus Manufacturing Module 24543 | -4/Cetus | Manufactured an Enhanced Grunt 24568 | -4/Cetus | Manufactured an Enhanced Grunt 24593 | -4/Cetus | Manufactured an Enhanced Grunt 24606 | -4/Cetus | Escorted A7 to Cetus Mainframe 24618 | -4/Cetus | Manufactured an Enhanced Grunt 24643 | -4/Cetus | Manufactured an Enhanced Grunt 24646 | -4/Cetus | Discovered new exit (range 15) 24686 | -4/Cetus | Spotted Cetus Guard 24686 | -4/Cetus | Spotted Cetus Guard 24689 | -4/Cetus | Spotted Cetus Guard 24689 | -4/Cetus | Spotted Cetus Guard 24696 | -4/Cetus | Allies destroyed Cetus Guard 24706 | -4/Cetus | Allies destroyed Cetus Guard 24708 | -4/Cetus | Destroyed Cetus Guard 24709 | -4/Cetus | Allies destroyed Cetus Guard 24721 | -4/Cetus | Found Prototype Device 24721 | -4/Cetus | Identified Exp. Thermal Shield 24734 | -4/Cetus | Discovered new exit (range 15) 24749 | -4/Cetus | Met Revision 17 24784 | -4/Cetus | Cetus Manufacturing Module disabled 24801 | -4/Cetus | Found Exp. Thermal Shield 24872 | -4/Cetus | Entered Archives 24872 | -4/Archives | Accompanied by 4 allies (A7) 24877 | -4/Archives | Received a hacking code to weaken MAIN.C 25009 | -4/Archives | Discovered new exit (range 15) 25130 | -4/Archives | Discovered new exit (range 16) 25217 | -4/Archives | System corruption reached 10% 25533 | -4/Archives | Discovered new exit (range 14) 25578 | -4/Archives | Entered Hub_04(d) 25578 | -4/Hub_04(d) | Accompanied by 3 allies 25604 | -4/Hub_04(d) | Build established: Scavenger-Mutant 25766 | -4/Hub_04(d) | Identified exit to Research 25869 | -4/Hub_04(d) | Destroyed 8 combat bots 25914 | -4/Hub_04(d) | Spotted B-86 Titan 26063 | -4/Hub_04(d) | Network Hub disabled 26070 | -4/Hub_04(d) | Spotted Lightning 26070 | -4/Hub_04(d) | Spotted Lightning 26082 | -4/Hub_04(d) | Spotted Lightning 26108 | -4/Hub_04(d) | Destroyed Lightning 26138 | -4/Hub_04(d) | Entered Research 26138 | -3/Research | Evolved 2 slots: Utility x1, Weapon x1 26638 | -3/Research | First assault squad dispatched 26738 | -3/Research | Build established: Scavenger-Tank 26751 | -3/Research | Discovered new exit (range 4) 26765 | -3/Research | Entered Armory 26765 | -3/Armory | Accompanied by 1 ally 26884 | -3/Armory | Spotted B-86 Titan 26897 | -3/Armory | Destroyed B-86 Titan 27289 | -3/Armory | Repaired Centrium Heavy Treads 27498 | -3/Armory | Build established: Hauler-Tank 27812 | -3/Armory | Found Prototype Processor 27812 | -3/Armory | Identified Exp. Targeting Computer 27825 | -3/Armory | Found Exp. Targeting Computer 28014 | -3/Armory | Repaired Broken Exp. Thermal Shield? 28043 | -3/Armory | First assault squad dispatched 28104 | -3/Armory | Destroyed 7 combat bots 28130 | -3/Armory | Lost 5 parts (1n2u2w) 28221 | -3/Armory | System corruption reached 10% 28236 | -3/Armory | Lost 14 parts (2p4n6u2w) 28263 | -3/Armory | Core integrity fell below 50% 28270 | -3/Armory | Released all parts (4) 28284 | -3/Armory | Assisted by bots powering up and referring to "LRC-V3" 28313 | -3/Armory | Lost 12 parts (2p1n2u7w) 28546 | -3/Armory | Build established: Scavenger-Skirmisher 28606 | -3/Armory | Core integrity fell below 20% 28632 | -3/Armory | Lost 3 parts (2n1w) 28880 | -3/Armory | Discovered new exit (range 4) 28887 | -3/Armory | Identified exit to Lab 28888 | -3/Armory | Entered Lab 28888 | -3/Lab | Discovered new exit (range 9) 28900 | -3/Lab | Identified exit to Research 28903 | -3/Lab | Entered Research 28903 | -2/Research | Evolved 2 slots: Utility x1, Weapon x1 29211 | -2/Research | Build established: Scavenger-Assassin 29245 | -2/Research | Spotted B-90 Cyclops 29451 | -2/Research | Crushed by falling debris 29695 | -2/Research | Lost 3 parts (1p1u1w) 29696 | -2/Research | System corruption reached 10% 29698 | -2/Research | Search patrols dispatched 29765 | -2/Research | Lost 4 parts (2p2w) 29903 | -2/Research | First assault squad dispatched 29903 | -2/Research | Core integrity fell below 50% 29943 | -2/Research | Core integrity fell below 20% 30005 | -2/Research | Lost 20 parts (2p3n8u7w) 30070 | -2/Research | Destroyed by G-73 Enforcer with Phase Gun Last Messages --------------- 29978_ G-73 Enforcer unfolds itself. 29978_ E-15 Imp unfolds itself. 29979_ E-15 Imp destroyed. 29979_ C-30 ARC bursts open, deploying its payload. 29979_ G-73 Enforcer unfolds itself. 29979_ B-74 Champion unfolds itself. 29979_ E-15 Imp unfolds itself. 29989_ R-10 Processor collects Graviton Reactor. 29992_ Quantum Reactor blown off. 29992_ E-15 Imp destroyed. 29993_ System corrupted: Matter fused (-6). 30001_ Critical hit (Burn: +37). 30003_ Dropped Mic. Antimatter Reactor. 30008_ W-44 Eye sends out distress signal. 30010_ Critical hit (Burn: +37). 30013_ EM Disruption Field destroyed. 30015_ CQY3EZL21SCY O9,V%GPQC: 30047_ System corrupted: Substantial component data lost. 30058_ Acquired Enh. Nova Cannon. [Achievement: Superachiever] Map ----- +----------------------------------------------------+ | ?????????????????????????????????? | | ?????????????????????????????????? | | ?????????????????????????????????? | | ?????????????????????????????????? | | ?????????????????????????????????? | | ?????????????????????????????????? | | ?????????????????????????????????? | | ?????????????????????????????????? | | ?????????????????????????????????? | | ?????????????????????????????????? | | ?????????????????????????????????? | | ????????###?#?????#??????????????? | | ????????# ???? #????########### | | ????????# #????# ] ! | | ????????# """ #????# | | ????????#! """" !#????# | | ????????# """" #????# ! | | ????????# """ #????# | | | ????????? = ?????# | | ??????????? ???????####+##+### | | ??????#######+############# | | ??????# | | ??????# | | ??????# ###############+## | | ??????# # #[ ######## | | ??????# @ g #??????? | | ??????+ # """ # #??????? | | ??????# # """ ?#! #??????? | | ??????# #? """ ?# #??????? | | ??????# #? ??# #??????? | | ??????# #?? ??########??????? | | ??????# #?? ???????????????? | | ??????# #???#####???????????????? | | ??????# ????????????????????????? | | ??????# ????????????????????????? | | ??????# ????????????????????????? | | ??????# ????????????????????????? | | ??????? ????????????????????????? | | ??????? ????????????????????????? | | ??????? ????????????????????????? | | ?????????????????????????????????? | | ?????????????????????????????????? | | ?????????????????????????????????? | | ?????????????????????????????????? | | ?????????????????????????????????? | | ?????????????????????????????????? | | ?????????????????????????????????? | | ?????????????????????????????????? | | ?????????????????????????????????? | | ?????????????????????????????????? | +----------------------------------------------------+ Best States ------------- Heat Dissipation 125 Coolant Potential 65 Energy Generation 53 Energy Capacity 2100 Matter Stores 300 Matter Capacity 350 Sight Range 20 Robot Scan Range 16 Terrain Scan Range 20 Terrain Scan Density 210 Jamming Range 12 Armor Coverage 1650 Resistance: KI 30 Resistance: TH 30 Resistance: EM 25 Core Shielding 20 Power Shielding 66 Utility Shielding 66 Weapon Cycling 25 Phase Shifting 15 Evasion (%) 67 Targeting Accuracy 12 Melee Accuracy 8 Recoil Reduction 6 Particle Charging 20 Kinecelleration 40 Offensive Hacking 24 Defensive Hacking 24 Relay Coupler Types 2 Relay Coupler Value 45 Authchip Count 5 Item Schematics ----------------- HERF Cannon | -5/Factory | Hacked Robot Schematics ------------------ H-77 Assassin | -4/Extension | Hacked L-61 Swordsman | -4/Extension | Hacked G-67 Veteran | -4/Extension | Hacked Fabricated ------------ Hvy. Shock Bomb Launcher | x1 | -6/Factory | Preloaded Adv. Signal Interpreter | x2 | -6/Factory | Preloaded Adv. Shield Generator | x2 | -5/Factory | Preloaded Alien Tech Used ----------------- None Achievements -------------- Short-term Sacrifices Superachiever Wheee! Challenges ------------ None Game ------ Seed BackupPotentialShredder Manual? 0 Play Time 05:59:29 Cumulative 770.5 hours Start 2022.07.13 @ 04:01:30 End 2022.07.15 @ 05:21:11 Sessions 15 Manual Loads 0 Difficulty Rogue Special Mode None Game No. 186 Rogue 154 Adventurer 31 Explorer 1 Win Type - Total 38 Types 28/0/5/4/0/0/1/0/0 Lore% 84 Gallery% 87 Achievement% 75 Wizard Run 0 Options --------- ASCII 0 Keyboard 0 Movement Arrows Keybinds 0 Fullscreen 1 Font 20/Terminus Map View 66x50 Tactical HUD 1 Map Filters NONE Filters NONE Steam 1 RUN: 918db10a-113a-4281-9f3e-a4bf3ff80230